bitfinex/quotes_SOLUSD_20230120
["timestamp","ask_amount","ask_price","bid_price","bid_amount"]
[1674177756329,109.6703,21.208,21.197,0.96]
[1674177757058,109.6703,21.208,21.197,17.96]
[1674177761089,35.35,21.218,21.198,10.0]
[1674177761271,151.0872,21.218,21.199,37.96]
[1674177761481,151.0872,21.218,21.2,10.0]
[1674177761698,151.0872,21.218,21.201,38.92]
[1674177762121,10.0,21.217,21.201,38.92]
[1674177762672,35.35,21.218,21.202,10.0]
[1674177762846,151.0672,21.229,21.203,54.3]
[1674177763065,10.0,21.228,21.204,10.0]
[1674177763267,35.34,21.227,21.205,1.92]
[1674177763475,35.34,21.227,21.205,18.92]
[1674177763699,35.34,21.227,21.205,17.96]
[1674177763700,10.0,21.226,21.205,17.96]
[1674177763917,10.0,21.224,21.205,0.96]
[1674177764123,35.34,21.223,21.206,0.96]
[1674177764532,10.0,21.222,21.205,17.96]
[1674177765365,35.34,21.223,21.205,17.96]
[1674177765366,21.5687576,21.211,21.206,0.96]
[1674177765575,10.0,21.226,21.208,10.0]
[1674177765793,10.0,21.226,21.209,55.37]
[1674177766004,35.33,21.228,21.211,10.0]
[1674177766217,10.0,21.229,21.212,21.92]
[1674177766441,10.0,21.229,21.213,17.0]
[1674177766752,10.0,21.229,21.214,1.92]
[1674177767490,10.0,21.227,21.214,1.92]
[1674177769460,10.0,21.225,21.212,20.0]
[1674177769792,35.34,21.224,21.205,20.0]
[1674177770007,10.0,21.225,21.206,6.14386639]
[1674177770209,35.34,21.224,21.207,20.0]
[1674177770643,35.34,21.224,21.208,0.96]
[1674177770842,35.34,21.224,21.209,0.96]
[1674177771167,35.34,21.224,21.21,0.96]
[1674177771482,35.34,21.224,21.21,17.96]
[1674177771695,35.34,21.224,21.211,20.96]
[1674177771883,35.34,21.224,21.212,17.96]
[1674177772089,10.0,21.223,21.213,0.96]
[1674177772299,10.0,21.223,21.211,20.0]
[1674177772510,10.0,21.223,21.207,20.0]
[1674177772727,35.34,21.222,21.202,4.2164341]
[1674177772941,10.0,21.221,21.199,35.38]
[1674177773155,35.35,21.22,21.198,94.79130982]
[1674177773366,10.0,21.219,21.198,94.79130982]
[1674177773586,35.35,21.218,21.198,94.79130982]
[1674177773774,10.0,21.217,21.198,94.79130982]
[1674177773975,10.0,21.217,21.198,35.38]
[1674177774211,35.35,21.216,21.195,35.39]
[1674177774531,35.35,21.216,21.195,118.5467]
[1674177774740,35.35,21.216,21.197,6.44885724]
[1674177774929,10.0,21.215,21.197,6.44885724]
[1674177775142,10.0,21.215,21.198,20.0]
[1674177775346,35.36,21.214,21.198,20.0]
[1674177775562,35.36,21.214,21.199,17.96]
[1674177775783,10.0,21.213,21.2,20.0]
[1674177776196,10.0,21.213,21.199,20.0]
[1674177776834,35.36,21.212,21.197,20.0]
[1674177777048,10.0,21.211,21.193,5.99127842]
[1674177777367,10.0,21.211,21.187,145.424]
[1674177777368,36.32,21.21,21.187,145.424]
[1674177777554,0.96,21.209,21.187,110.024]
[1674177777769,35.37,21.208,21.187,110.024]
[1674177777993,10.0,21.207,21.187,110.024]
[1674177778328,36.33,21.206,21.187,110.024]
[1674177778510,0.96,21.205,21.187,110.024]
[1674177778726,10.0,21.203,21.187,110.024]
[1674177778937,10.0,21.201,21.187,110.024]
[1674177779559,10.0,21.201,21.188,17.0]
[1674177779869,10.0,21.201,21.189,20.0]
[1674177780080,10.0,21.201,21.19,17.0]
[1674177780304,10.0,21.201,21.184,35.41]
[1674177780509,36.34,21.2,21.182,35.41]
[1674177780733,154.3587,21.2,21.178,35.42]
[1674177780936,10.0,21.199,21.178,35.42]
[1674177781149,35.38,21.198,21.178,35.42]
[1674177781588,117.5627,21.197,21.178,35.42]
[1674177781781,35.39,21.196,21.178,35.42]
[1674177781991,10.0,21.195,21.178,35.42]
[1674177783070,10.0,21.195,21.179,0.96]
[1674177783268,10.0,21.195,21.179,20.96]
[1674177783484,10.0,21.195,21.18,17.96]
[1674177783693,10.0,21.195,21.181,20.96]
[1674177783911,35.39,21.196,21.183,10.0]
[1674177784102,117.5627,21.197,21.184,0.96]
[1674177784313,117.5627,21.197,21.185,0.96]
[1674177784513,35.38,21.202,21.186,0.96]
[1674177784727,45.37,21.205,21.187,0.96]
[1674177784936,10.0,21.205,21.187,10.96]
[1674177785146,10.0,21.205,21.188,17.96]
[1674177785379,10.0,21.205,21.189,0.96]
[1674177785585,10.0,21.205,21.19,0.96]
[1674177786213,10.0,21.205,21.191,0.96]
[1674177786534,10.0,21.205,21.192,0.96]
[1674177786738,10.0,21.205,21.193,0.96]
[1674177786931,35.37,21.206,21.193,0.96]
[1674177787137,35.36,21.21,21.194,36.35]
[1674177787351,119.3245,21.214,21.194,0.96]
[1674177787352,35.36,21.212,21.194,0.96]
[1674177787561,35.36,21.212,21.195,0.96]
[1674177787787,35.36,21.212,21.196,0.96]
[1674177787982,35.36,21.212,21.197,0.96]
[1674177788197,35.36,21.212,21.198,0.96]
[1674177788405,35.36,21.212,21.199,0.96]
[1674177789979,119.3245,21.214,21.2,0.96]
[1674177790188,119.3245,21.214,21.201,0.96]
[1674177790611,154.6845,21.214,21.202,0.96]
[1674177790823,154.6845,21.214,21.203,0.96]
[1674177791568,119.3245,21.214,21.203,17.96]
[1674177792958,35.35,21.216,21.203,17.96]
[1674177793169,109.1019,21.219,21.204,0.96]
[1674177793377,10.0,21.218,21.205,0.96]
[1674177793691,10.0,21.218,21.203,17.96]
[1674177793906,35.35,21.217,21.203,0.96]
[1674177794118,45.35,21.218,21.201,17.0]
[1674177794324,45.35,21.218,21.202,0.96]
[1674177795057,10.0,21.218,21.202,0.96]
[1674177795268,45.35,21.218,21.202,0.96]
[1674177795585,10.0,21.218,21.203,0.96]
[1674177795777,45.35,21.218,21.204,0.96]
[1674177795982,35.35,21.218,21.205,0.96]
[1674177796192,109.1019,21.219,21.206,0.96]
[1674177796515,109.1019,21.219,21.207,0.96]
[1674177796732,109.1019,21.219,21.208,0.96]
[1674177796937,109.1019,21.219,21.209,0.96]
[1674177797267,109.1019,21.219,21.21,0.96]
[1674177797452,109.1019,21.219,21.211,0.96]
[1674177797879,109.1019,21.219,21.211,17.96]
[1674177798319,109.1019,21.219,21.211,0.96]
[1674177798715,109.1019,21.219,21.211,17.96]
[1674177799342,35.34,21.222,21.211,17.96]
[1674177799559,10.0,21.223,21.212,0.96]
[1674177799871,10.0,21.223,21.213,0.96]
[1674177800082,10.0,21.223,21.212,0.96]
[1674177800287,10.0,21.221,21.211,17.0]
[1674177800600,10.0,21.221,21.212,0.96]
[1674177800809,10.0,21.221,21.211,17.0]
[1674177801026,10.0,21.221,21.21,20.0]
[1674177801243,10.0,21.221,21.199,5.38198495]
[1674177801447,35.35,21.22,21.197,5.37088295]
[1674177801663,10.0,21.219,21.199,5.67936994]
[1674177801879,35.35,21.218,21.199,5.67936994]
[1674177802294,10.0,21.217,21.196,117.1101]
[1674177802514,10.0,21.215,21.197,6.13149272]
[1674177802727,10.0,21.215,21.197,41.52149272]
[1674177802939,10.0,21.215,21.198,7.60343201]
[1674177803255,10.0,21.215,21.199,18.92]
[1674177804599,10.0,21.215,21.2,17.0]
[1674177804912,10.0,21.215,21.201,21.92]
[1674177805119,10.0,21.215,21.202,17.0]
[1674177805539,10.0,21.215,21.2,17.0]
[1674177805774,10.0,21.215,21.201,20.96]
[1674177805983,10.0,21.215,21.202,17.0]
[1674177806818,10.0,21.215,21.203,1.92]
[1674177807348,45.35,21.217,21.203,1.92]
[1674177807560,10.0,21.217,21.203,1.92]
[1674177807796,10.0,21.217,21.203,9.62848792]
[1674177807987,10.0,21.217,21.204,17.0]
[1674177808297,108.7807,21.219,21.206,7.78087402]
[1674177808484,108.7807,21.219,21.207,37.96]
[1674177808702,112.5798,21.228,21.207,38.92]
[1674177808919,112.5798,21.228,21.208,6.48958092]
[1674177809126,45.34,21.226,21.209,37.96]
[1674177809341,45.34,21.226,21.209,38.92]
[1674177809562,45.34,21.226,21.209,43.70294109]
[1674177809755,45.34,21.226,21.209,38.92]
[1674177810703,35.34,21.224,21.209,38.92]
[1674177810913,10.0,21.223,21.209,38.92]
[1674177812617,10.0,21.223,21.209,37.96]
[1674177813260,10.0,21.223,21.203,35.38]
[1674177813563,10.0,21.221,21.196,35.39]
[1674177813773,35.35,21.22,21.197,6.36207991]
[1674177813987,35.35,21.22,21.199,4.11356855]
[1674177814185,10.0,21.218,21.2,35.38]
[1674177814402,45.35,21.218,21.201,5.68923841]
[1674177814712,45.35,21.218,21.202,18.92]
[1674177814926,118.6803,21.219,21.203,17.74264391]
[1674177815142,118.6803,21.219,21.204,54.29]
[1674177815665,10.0,21.218,21.198,35.38]
[1674177816392,35.35,21.217,21.198,35.38]
[1674177816598,10.0,21.216,21.198,35.38]
[1674177816810,10.0,21.216,21.199,20.0]
[1674177817011,10.0,21.216,21.2,18.92]
[1674177817221,10.0,21.216,21.201,20.0]
[1674177817425,10.0,21.216,21.202,18.92]
[1674177817649,10.0,21.216,21.203,35.38]
[1674177817879,10.0,21.216,21.204,18.92]
[1674177818062,10.0,21.218,21.204,18.92]
[1674177818479,10.0,21.218,21.204,1.92]
[1674177818691,10.0,21.218,21.205,17.0]
[1674177818905,10.0,21.218,21.204,1.92]
[1674177819345,45.35,21.218,21.204,1.92]
[1674177819535,247.008,21.219,21.204,1.92]
[1674177819749,237.008,21.219,21.204,18.92]
[1674177819963,237.008,21.219,21.205,35.37]
[1674177820165,10.0,21.218,21.206,18.92]
[1674177820802,10.0,21.218,21.206,1.92]
[1674177821018,10.0,21.218,21.206,0.96]
[1674177821350,10.0,21.218,21.201,20.0]
[1674177821661,10.0,21.216,21.2,20.0]
[1674177821863,10.0,21.216,21.198,20.0]
[1674177822073,35.36,21.215,21.198,20.0]
[1674177822491,10.0,21.214,21.199,18.92]
[1674177822693,10.0,21.214,21.2,20.0]
[1674177822929,10.0,21.214,21.201,18.92]
[1674177823465,10.0,21.214,21.2,20.0]
[1674177823675,10.0,21.214,21.198,20.0]
[1674177824604,10.0,21.214,21.197,20.0]
[1674177825243,10.0,21.214,21.198,0.96]
[1674177825672,10.0,21.214,21.199,0.96]
[1674177825990,10.0,21.214,21.199,20.96]
[1674177826199,10.0,21.214,21.2,17.96]
[1674177826809,10.0,21.214,21.201,20.0]
[1674177827018,10.0,21.214,21.202,17.0]
[1674177828716,10.0,21.214,21.203,0.96]
[1674177829752,10.0,21.216,21.203,0.96]
[1674177829963,10.0,21.216,21.204,36.33]
[1674177830182,10.0,21.216,21.205,17.0]
[1674177830697,10.0,21.216,21.204,0.96]
[1674177830908,10.0,21.216,21.205,0.96]
[1674177831135,10.0,21.216,21.206,0.96]
[1674177831670,118.6803,21.219,21.207,0.96]
[1674177831979,45.34,21.225,21.209,5.64635698]
[1674177832188,10.0,21.225,21.211,4.62320289]
[1674177832502,10.0,21.225,21.212,1.92]
[1674177832718,10.0,21.225,21.212,18.92]
[1674177833352,10.0,21.225,21.212,54.28]
[1674177833656,10.0,21.227,21.213,4.80511307]
[1674177833866,10.0,21.227,21.214,18.92]
[1674177835850,10.0,21.227,21.213,4.80511307]
[1674177836060,10.0,21.227,21.211,35.36]
[1674177836919,10.0,21.227,21.21,20.0]
[1674177837530,10.0,21.227,21.211,18.92]
[1674177838687,10.0,21.227,21.211,54.28]
[1674177839546,10.0,21.224,21.211,18.92]
[1674177841106,10.0,21.224,21.212,4.86443181]
[1674177841312,10.0,21.224,21.213,18.92]
[1674177841561,10.0,21.224,21.214,35.36]
[1674177841763,10.0,21.224,21.215,18.92]
[1674177844784,10.0,21.226,21.215,17.0]
[1674177844995,10.0,21.226,21.187,10.0]
[1674177845206,59.09576951,21.225,21.189,6.02479089]
[1674177845418,10.0,21.224,21.194,16.04169526]
[1674177845625,35.34,21.223,21.195,35.39]
[1674177845852,35.34,21.223,21.197,10.0]
[1674177846048,10.0,21.224,21.199,4.18629093]
[1674177846254,10.0,21.224,21.201,16.05103425]
[1674177846470,10.0,21.224,21.203,5.46228855]
[1674177846695,10.0,21.224,21.205,7.45810384]
[1674177846905,10.0,21.224,21.206,56.33]
[1674177847118,35.34,21.223,21.202,145.4065]
[1674177847323,10.0,21.222,21.202,110.0265]
[1674177847536,10.0,21.22,21.202,110.0265]
[1674177847750,35.35,21.219,21.202,110.0265]
[1674177847961,10.0,21.218,21.193,7.91869193]
[1674177848279,35.35,21.219,21.192,35.39]
[1674177848280,35.35,21.217,21.195,15.85733513]
[1674177848490,116.9145,21.219,21.197,6.60968532]
[1674177848705,116.9145,21.219,21.199,4.98817335]
[1674177848907,116.9145,21.219,21.201,7.82729911]
[1674177849101,116.9145,21.219,21.203,7.5846827]
[1674177849309,116.9145,21.219,21.204,18.92]
[1674177849532,116.9145,21.219,21.204,23.4743676]
[1674177849964,116.9145,21.219,21.205,25.69335197]
[1674177850150,116.9145,21.219,21.206,54.29]
[1674177850354,116.9145,21.219,21.207,20.0]
[1674177850580,116.9145,21.219,21.208,18.92]
[1674177850790,116.9145,21.219,21.209,20.0]
[1674177851012,116.9145,21.219,21.21,17.96]
[1674177851217,10.0,21.222,21.211,20.0]
[1674177851408,10.0,21.222,21.212,18.92]
[1674177851618,10.0,21.223,21.213,20.0]
[1674177851844,10.0,21.223,21.214,18.92]
[1674177855504,10.0,21.223,21.214,17.0]
[1674177855713,10.0,21.223,21.213,20.0]
[1674177855935,10.0,21.223,21.207,20.0]
[1674177856147,10.0,21.223,21.208,35.37]
[1674177856351,10.0,21.223,21.209,20.0]
[1674177857090,10.0,21.223,21.21,18.92]
[1674177857302,10.0,21.223,21.211,20.0]
[1674177857513,108.9849,21.225,21.212,18.92]
[1674177857837,108.9849,21.225,21.213,20.0]
[1674177858052,108.9849,21.225,21.214,17.96]
[1674177858262,108.9849,21.225,21.215,0.96]
[1674177859227,45.33,21.228,21.215,0.96]
[1674177859522,24.60078996,21.261,21.216,0.96]
[1674177859523,45.33,21.231,21.216,0.96]
[1674177859743,10.0,21.232,21.217,0.96]
[1674177860051,10.0,21.232,21.218,0.96]
[1674177860254,35.33,21.231,21.217,20.96]
[1674177860466,35.33,21.231,21.218,0.96]
[1674177860680,35.33,21.231,21.219,0.96]
[1674177861324,35.33,21.231,21.219,20.96]
[1674177861630,35.33,21.231,21.22,17.0]
[1674177861816,35.33,21.231,21.221,20.0]
[1674177862028,35.33,21.231,21.222,17.0]
[1674177862236,10.0,21.232,21.223,20.0]
[1674177862459,35.33,21.231,21.224,17.0]
[1674177862689,10.0,21.232,21.224,17.0]
[1674177865294,117.3115,21.233,21.224,17.0]
[1674177868681,10.0,21.232,21.217,35.35]
[1674177868899,10.0,21.229,21.218,20.0]
[1674177869088,10.0,21.229,21.213,149.9009]
[1674177869423,45.33,21.229,21.21,35.36]
[1674177869738,0.96,21.228,21.205,35.37]
[1674177869950,10.0,21.226,21.201,17.44052242]
[1674177870134,35.34,21.225,21.202,35.38]
[1674177870351,10.0,21.224,21.202,35.38]
[1674177870554,35.34,21.223,21.203,6.81522827]
[1674177870782,35.34,21.223,21.205,5.96971276]
[1674177870976,10.0,21.224,21.207,6.65227961]
[1674177871185,10.0,21.224,21.208,18.92]
[1674177872256,10.0,21.224,21.209,24.64023113]
[1674177872449,10.0,21.224,21.21,18.92]
[1674177872653,10.0,21.224,21.211,20.0]
[1674177872863,10.0,21.224,21.212,18.92]
[1674177873303,10.0,21.224,21.211,20.0]
[1674177873513,35.34,21.223,21.205,27.73721597]
[1674177873712,35.34,21.223,21.205,20.0]
[1674177873925,10.0,21.222,21.203,4.9501525]
[1674177874255,10.0,21.22,21.203,4.9501525]
[1674177874448,10.0,21.22,21.203,24.9501525]
[1674177875078,10.0,21.22,21.2,35.38]
[1674177875079,10.0,21.22,21.205,15.72296985]
[1674177875290,10.0,21.22,21.206,74.29]
[1674177876249,10.0,21.222,21.206,74.29]
[1674177876438,10.0,21.222,21.206,38.92]
[1674177877496,10.0,21.222,21.207,7.92178791]
[1674177877711,10.0,21.222,21.208,38.92]
[1674177879484,10.0,21.222,21.208,0.96]
[1674177879695,35.35,21.221,21.201,34.0]
[1674177880022,10.0,21.22,21.198,31.46]
[1674177880231,151.111,21.219,21.2,20.0]
[1674177880664,10.96,21.218,21.2,20.0]
[1674177880866,35.35,21.217,21.194,31.55]
[1674177881066,35.35,21.217,21.188,30.69]
[1674177881278,35.35,21.217,21.189,21.80019723]
[1674177881488,10.0,21.216,21.191,5.1392826]
[1674177881697,10.0,21.214,21.192,31.11]
[1674177881903,10.0,21.214,21.191,6.27051127]
[1674177882219,10.0,21.214,21.193,4.28332075]
[1674177882434,10.0,21.214,21.194,50.33]
[1674177882659,10.0,21.214,21.195,20.0]
[1674177882893,10.0,21.214,21.196,51.89]
[1674177883190,10.0,21.214,21.197,24.14009769]
[1674177883371,10.0,21.214,21.198,57.22284841]
[1674177883588,10.0,21.214,21.199,20.0]
[1674177883795,10.0,21.214,21.2,18.92]
[1674177884215,10.0,21.214,21.201,20.0]
[1674177884431,10.0,21.214,21.202,18.92]
[1674177885053,10.0,21.214,21.202,26.68030328]
[1674177885706,123.925,21.216,21.202,26.68030328]
[1674177886018,123.925,21.216,21.203,29.82]
[1674177886229,123.925,21.216,21.204,18.92]
[1674177886669,123.925,21.216,21.204,1.92]
[1674177888562,123.925,21.216,21.202,31.03]
[1674177888764,123.925,21.216,21.201,20.0]
[1674177889090,123.925,21.216,21.198,20.0]
[1674177889293,35.36,21.215,21.197,20.0]
[1674177889502,10.0,21.214,21.197,20.0]
[1674177890121,10.0,21.214,21.198,18.92]
[1674177890344,10.0,21.214,21.199,20.0]
[1674177890554,10.0,21.214,21.2,18.92]
[1674177890775,10.0,21.214,21.201,20.0]
[1674177891169,10.0,21.214,21.202,17.0]
[1674177893387,10.0,21.214,21.203,0.96]
[1674177893588,10.0,21.214,21.204,0.96]
[1674177894244,10.0,21.217,21.204,0.96]
[1674177896315,10.0,21.217,21.205,0.96]
[1674177896532,10.0,21.217,21.206,0.96]
[1674177896743,10.0,21.217,21.207,0.96]
[1674177897063,10.0,21.217,21.208,0.96]
[1674177897272,10.0,21.217,21.209,0.96]
[1674177898524,10.0,21.217,21.204,17.0]
[1674177898735,10.0,21.217,21.205,0.96]
[1674177898948,10.0,21.217,21.206,0.96]
[1674177899281,10.0,21.217,21.198,35.38]
[1674177899474,35.35,21.216,21.199,27.3160397]
[1674177899679,10.0,21.217,21.199,27.3160397]
[1674177899889,10.0,21.218,21.199,27.3160397]
[1674177900126,115.761,21.219,21.2,35.38]
[1674177900329,152.8658,21.223,21.201,4.72285211]
[1674177900532,117.5258,21.223,21.203,15.61584766]
[1674177900863,117.5258,21.223,21.206,10.0]
[1674177901051,117.5258,21.223,21.208,4.84910248]
[1674177901263,117.5258,21.223,21.209,17.96]
[1674177901470,35.34,21.225,21.21,20.96]
[1674177901800,35.33,21.228,21.211,6.89309178]
[1674177902008,35.33,21.228,21.212,17.96]
[1674177902215,35.33,21.228,21.213,0.96]
[1674177902435,45.33,21.229,21.214,0.96]
[1674177902624,45.33,21.229,21.215,0.96]
[1674177902836,45.33,21.229,21.216,0.96]
[1674177903046,45.33,21.229,21.217,0.96]
[1674177903261,45.33,21.229,21.218,0.96]
[1674177903693,45.33,21.229,21.217,0.96]
[1674177905803,45.33,21.229,21.214,17.0]
[1674177906113,45.33,21.229,21.215,0.96]
[1674177906322,45.33,21.229,21.21,20.0]
[1674177906520,10.0,21.225,21.208,20.0]
[1674177906732,35.34,21.224,21.205,20.0]
[1674177907482,10.0,21.223,21.205,20.0]
[1674177907667,35.34,21.222,21.205,20.0]
[1674177908089,10.0,21.221,21.199,4.8693609]
[1674177908323,35.35,21.22,21.198,35.38]
[1674177908509,10.0,21.218,21.196,6.72965884]
[1674177908720,35.35,21.217,21.196,6.72965884]
[1674177909170,10.0,21.216,21.196,6.72965884]
[1674177909352,35.36,21.215,21.196,6.72965884]
[1674177909563,10.0,21.214,21.197,20.0]
[1674177909787,35.36,21.213,21.197,20.0]
[1674177909985,10.0,21.212,21.197,20.0]
[1674177910505,10.0,21.212,21.196,6.72965884]
[1674177910927,10.0,21.212,21.194,112.059]
[1674177911157,35.36,21.211,21.194,112.059]
[1674177911473,10.0,21.21,21.192,35.39]
[1674177911660,35.37,21.209,21.188,35.4]
[1674177911879,148.0792,21.209,21.189,4.6908871]
[1674177912419,10.0,21.207,21.189,4.6908871]
[1674177912622,45.37,21.207,21.189,4.6908871]
[1674177912833,45.37,21.207,21.189,24.6908871]
[1674177913806,45.37,21.207,21.19,18.92]
[1674177914019,45.37,21.207,21.191,20.0]
[1674177914215,45.37,21.207,21.192,18.92]
[1674177914625,35.37,21.207,21.192,18.92]
[1674177914846,114.8744,21.208,21.192,24.92915115]
[1674177915468,114.8744,21.208,21.194,6.12408385]
[1674177915679,10.0,21.21,21.195,38.92]
[1674177915896,10.0,21.21,21.196,6.02146662]
[1674177916106,10.0,21.21,21.197,18.92]
[1674177916437,10.0,21.21,21.198,20.0]
[1674177916628,10.0,21.21,21.199,18.92]
[1674177916840,10.0,21.21,21.2,20.0]
[1674177917056,10.0,21.21,21.201,17.96]
[1674177917265,10.0,21.21,21.202,20.0]
[1674177917595,10.0,21.21,21.203,17.0]
[1674177920739,10.0,21.212,21.203,17.0]
[1674177921163,10.0,21.212,21.204,0.96]
[1674177923906,10.0,21.212,21.203,17.0]
[1674177924085,35.36,21.211,21.203,17.0]
[1674177924299,35.36,21.211,21.194,5.75765347]
[1674177924300,10.0,21.212,21.194,5.75765347]
[1674177924628,121.9743,21.23,21.198,7.22268569]
[1674177924840,115.8041,21.228,21.2,6.34067155]
[1674177925033,115.8041,21.228,21.202,4.29389544]
[1674177925244,35.34,21.226,21.204,7.13424827]
[1674177925448,35.34,21.226,21.206,4.76249221]
[1674177925667,35.34,21.226,21.208,6.12302286]
[1674177925868,35.34,21.226,21.209,38.92]
[1674177926296,35.34,21.224,21.209,38.92]
[1674177927144,35.34,21.226,21.209,38.92]
[1674177927671,35.34,21.226,21.21,49.53335635]
[1674177928002,35.34,21.226,21.211,38.92]
[1674177928216,151.1341,21.228,21.212,7.78277908]
[1674177928430,151.1341,21.228,21.213,18.92]
[1674177929055,125.8041,21.228,21.213,18.92]
[1674177929266,115.8041,21.228,21.213,18.92]
[1674177929453,45.33,21.229,21.213,73.15137362]
[1674177929663,10.0,21.229,21.214,4.6710386]
[1674177929874,10.0,21.229,21.215,18.92]
[1674177932729,157.3043,21.23,21.215,18.92]
[1674177932943,111.9743,21.23,21.216,55.35]
[1674177933132,111.9743,21.23,21.217,18.92]
[1674177933345,111.9743,21.23,21.218,20.0]
[1674177933671,111.9743,21.23,21.219,18.92]
[1674177934070,111.9743,21.23,21.22,20.0]
[1674177934305,111.9743,21.23,21.218,20.0]
[1674177934724,111.9743,21.23,21.216,10.0]
[1674177935043,111.9743,21.23,21.217,20.0]
[1674177935363,111.9743,21.23,21.218,0.96]
[1674177935576,111.9743,21.23,21.219,0.96]
[1674177935995,111.9743,21.23,21.219,20.96]
[1674177936198,111.9743,21.23,21.22,17.96]
[1674177936521,111.9743,21.23,21.221,0.96]
[1674177936832,111.9743,21.23,21.222,0.96]
[1674177937041,111.9743,21.23,21.222,17.96]
[1674177937438,111.9743,21.23,21.221,20.0]
[1674177937645,147.3043,21.23,21.206,35.37]
[1674177937858,10.0,21.229,21.206,35.37]
[1674177938077,111.9743,21.23,21.213,10.0]
[1674177938297,111.9743,21.23,21.213,45.36]
[1674177938622,111.9743,21.23,21.213,35.36]
[1674177939036,10.0,21.229,21.214,18.92]
[1674177939235,10.0,21.229,21.215,20.0]
[1674177939448,10.0,21.229,21.216,18.92]
[1674177939656,10.0,21.229,21.217,20.0]
[1674177939867,10.0,21.229,21.218,18.92]
[1674177940077,10.0,21.229,21.219,20.0]
[1674177940295,10.0,21.229,21.22,17.0]
[1674177940508,10.0,21.229,21.213,35.36]
[1674177940719,45.33,21.229,21.214,0.96]
[1674177940936,45.33,21.229,21.213,0.96]
[1674177942199,45.33,21.229,21.214,0.96]
[1674177942929,35.33,21.229,21.214,0.96]
[1674177943359,157.3043,21.23,21.214,0.96]
[1674177943564,121.9743,21.23,21.214,56.32]
[1674177943779,121.9743,21.23,21.215,17.96]
[1674177943967,121.9743,21.23,21.216,0.96]
[1674177944177,111.9743,21.23,21.216,20.96]
[1674177944398,111.9743,21.23,21.217,17.96]
[1674177944613,111.9743,21.23,21.218,20.96]
[1674177944932,111.9743,21.23,21.219,17.96]